Cogmind - Beta 13 @@@ ROGUE MODE // 2024.04.12 @ 14:33:19 Player: pro100_Player Result: Destroyed by S-27 Virus with Autogun Performance ------------- Evolutions (4) 2000 Regions Visited (15) 3000 Robots Destroyed (71) 355 Value Destroyed (2050) 2050 Prototype IDs (28) 560 Alien Tech Used (0) 0 Bonus (1128) 1128 TOTAL SCORE: 9093 Bonus ------- High Alert Combat Kills 28 Entered Garrisons 200 Aligned with FarCom 300 Met Imprinter 300 Acquired ECA 300 Cogmind --------- Core Integrity 0/850 Matter 300/300 Energy 148/160 System Corruption 0% Temperature Cool (0) Movement Flying (195) Ox2 Location -5/Proximity Caves Parts ------- > --- POWER (1) -------- Light Fission Core > --- PROPULSION (5) --- VTOL Module > --- UTILITY (7) ------ Enhanced Optical Array Advanced Terrain Scanner Encrypted Comm Array Advanced Targeting Computer Improved Target Analyzer Improved Hacking Suite > --- WEAPON (2) ------- Phasing Sabre > --- INVENTORY (5) ---- Improved Launcher Guidance Computer Authchip [Processor] Latent Energy Streamer Gauss Cannon Rocket Launcher Peak State ------------ > --- POWER ------------ Fusion Compressor > --- PROPULSION ------- Improved Gravmag System VTOL Module Cooled Cesium-ion Thruster Field Propulsion Array > --- UTILITY ---------- Hacking Suite Hacking Suite Hacking Suite Hacking Suite Hacking Suite System Shield System Shield > --- WEAPON ----------- Hypervelocity Gauss Rifle Heavy Mace > --- INVENTORY -------- Cooled Airjet Advanced ECM Suite Latent Energy Streamer Precision Grenade Launcher Improved Datajack [Rating: 63] Favorites ----------- Power Light Ion Engine Engine Light Ion Engine Power Core Light Fission Core Propulsion VTOL Module Hover Unit Airjet Flight Unit VTOL Module Utility Hacking Suite Device Advanced Heat Sink Processor Transport Network Coupler Hackware Hacking Suite Protection Hardened Light Armor Plating Weapon Gauss Rifle Energy Gun Medium Laser Energy Cannon Proton Cannon Ballistic Gun Gauss Rifle Ballistic Cannon Improved Light Cannon Launcher Rocket Launcher Special Weapon Remote Datajack Impact Weapon Heavy Mace Slashing Weapon Phasing Sabre Piercing Weapon CR-A16's Pointy Stick Special Melee Weapon Datajack Build | -11 -10 -10 -10 -9 -8 -7 -6 -6 -6 -6 -6 -6 -6 -6 -5 ------- Run | Yrd Mat Min Exi Min Mat Fac Fac Was Fac Gar Fac Low Low Zio Pro Slots Evolved 8 | . . . . . 4 2 2 . . . . . . . . Power . | . . . . . . . . . . . . . . . . Propulsion 3 | . . . . . 2 . 1 . . . . . . . . Utility 5 | . . . . . 2 2 1 . . . . . . . . Weapon . | . . . . . . . . . . . . . . . . Parts Attached 127 | 2 17 . . 4 9 38 8 4 2 13 15 8 4 3 . Power 18 | . 3 . . . 1 4 . 3 . 1 1 3 1 1 . Engine 7 | . 3 . . . 1 . . . . . . 2 1 . . Core 11 | . . . . . . 4 . 3 . 1 1 1 . 1 . Reactor . | . . . . . . . . . . . . . . . . Propulsion 41 | . 5 . . 1 2 17 2 1 1 8 3 1 . . . Treads . | . . . . . . . . . . . . . . . . Leg . | . . . . . . . . . . . . . . . . Wheel . | . . . . . . . . . . . . . . . . Hover 10 | . 3 . . . . 4 2 . . 1 . . . . . Flight 31 | . 2 . . 1 2 13 . 1 1 7 3 1 . . . Utility 28 | . 4 . . . 2 5 2 . . . 9 4 2 . . Device 11 | . 2 . . . . 1 . . . . 4 4 . . . Storage . | . . . . . . . . . . . . . . . . Processor 6 | . 2 . . . . . . . . . 4 . . . . Hackware 10 | . . . . . 2 4 2 . . . . . 2 . . Protection 1 | . . . . . . . . . . . 1 . . . . Artifact . | . . . . . . . . . . . . . . . . Weapon 40 | 2 5 . . 3 4 12 4 . 1 4 2 . 1 2 . Energy Gun 5 | 1 . . . . . 3 1 . . . . . . . . Energy Cannon 2 | . . . . . . 1 . . . . 1 . . . . Ballistic Gun 10 | 1 2 . . . . 5 . . 1 1 . . . . . Ballistic Cannon 6 | . 1 . . 1 2 . . . . . 1 . 1 . . Launcher 5 | . . . . 1 1 . 1 . . 2 . . . . . Special Weapon 1 | . . . . . . 1 . . . . . . . . . Impact Weapon 2 | . . . . . . . 2 . . . . . . . . Slashing Weapon 1 | . . . . . . . . . . . . . . 1 . Piercing Weapon 1 | . . . . . . . . . . . . . . 1 . Special Melee Weapon 7 | . 2 . . 1 1 2 . . . 1 . . . . . Unidentified Prototypes 4 | . . . . . . 2 1 . 1 . . . . . . Corrupted Parts 2 | . . . . . . 2 . . . . . . . . . System Corruption 13 | . . . . . . 13 . . . . . . . . . Parts Lost 46 | . 2 . . 1 1 18 3 . . 15 . 1 2 . 3 Power 3 | . . . . . . 2 . . . 1 . . . . . Propulsion 26 | . . . . 1 . 11 3 . . 7 . . 2 . 2 Utility 10 | . 1 . . . . 2 . . . 5 . 1 . . 1 Weapon 7 | . 1 . . . 1 3 . . . 2 . . . . . Highest Loss Streak 7 | . 1 . . 1 1 7 2 . . 7 . 1 1 . 3 To Critical Strikes . | . . . . . . . . . . . . . . . . Average Slot Usage (%) 86 | . 81 100 100 99 79 89 81 83 88 67 84 93 84 80 78 Engine 3 | . 10 14 14 14 9 1 . . . . . 3 3 . . Core 2 | . . . . . . 3 . 4 6 4 6 2 2 5 6 Hover 6 | . 14 . . . . 2 21 13 8 6 . . . . . Flight 19 | . 7 28 28 27 23 23 6 12 17 12 28 31 23 20 19 Device 4 | . 14 . . . . . . . . . 5 12 19 13 13 Processor 12 | . 6 28 28 28 18 8 . . . . 20 22 20 20 20 Hackware 21 | . . . . . 11 34 45 46 46 32 6 6 6 13 12 Energy Gun 1 | . 7 . . . . . . . . . . . . . . Ballistic Gun 2 | . 4 . . . . 6 . . 2 3 . . . . . Ballistic Cannon 3 | . 6 14 14 12 9 . . . . . 5 6 . . . Impact Weapon 1 | . . . . . . . 4 6 6 4 . . . . . Special Melee Weapon 4 | . 8 14 14 14 7 . . . . . 6 6 6 1 . Naked Turns . | . . . . . . . . . . . . . . . . Heaviest Build 25 | 3 10 8 8 8 13 18 4 8 14 14 22 25 18 15 12 Greatest Support 25 | 3 12 8 8 8 16 18 10 19 25 25 22 22 22 12 12 Greatest Overweight (x) 2 | . 1 . . 1 . 1 . . . 2 . 1 1 1 1 Average Overweight (x) . | . . . . . . . . . . . . . . . . Largest Inventory Capacity 5 | 5 5 5 5 5 5 5 5 5 5 5 5 5 5 5 5 Average Capacity 5 | 5 5 5 5 5 5 5 5 5 5 5 5 5 5 5 5 Most Carried 5 | 3 5 5 5 5 5 5 5 5 5 5 5 5 5 5 5 Average Carried 4 | . 3 4 4 4 4 4 4 4 4 4 4 4 4 4 5 Final Capacity 5 | 5 5 5 5 5 5 5 5 5 5 5 5 5 5 5 5 Final Carried 5 | 2 5 5 5 5 5 5 5 4 5 2 5 4 5 5 5 Class Distribution -------------------- 21% | Wizard-Mutant 20% | Mutant 20% | Hacker-Sprinter 13% | Scavenger-Sprinter 8% | Hacker-Mutant 8% | Sprinter 5% | Scavenger-Mutant Dominant Class ---------------- Mutant | -10/Materials Mutant | -10/Mines Mutant | -10/Exiles Mutant | -9/Mines Scavenger-Mutant | -8/Materials Hacker-Sprinter | -7/Factory Wizard-Mutant | -6/Factory Wizard-Mutant | -6/Waste Wizard-Mutant | -6/Factory Wizard-Mutant | -6/Garrison Sprinter | -6/Factory Scavenger-Sprinter | -6/Lower Caves Scavenger-Sprinter | -6/Lower Caves Hacker-Sprinter | -6/Zion Hacker-Sprinter | -5/Proximity Caves Resources | -11 -10 -10 -10 -9 -8 -7 -6 -6 -6 -6 -6 -6 -6 -6 -5 ----------- Run | Yrd Mat Min Exi Min Mat Fac Fac Was Fac Gar Fac Low Low Zio Pro Matter Collected 2776 | 241 313 26 . 66 118 799 221 . . 335 65 511 44 37 . Remotely . | . . . . . . . . . . . . . . . . Salvage Created 1930 | 147 192 . . 34 152 756 335 . . 217 59 15 . . 23 Parts 119 | 8 17 . . 8 18 49 9 . . 6 3 . . . 1 Haulers Intercepted 2 | . 1 . . . . . 1 . . . . . . . . Recyclers Shooed . | . . . . . . . . . . . . . . . . Parts Field Recycled . | . . . . . . . . . . . . . . . . Retrieved Matter . | . . . . . . . . . . . . . . . . Parts Self-Destructed 13 | . . . . . . . . . . . . 9 . 4 . Prevented 3 | . . . . . . . . . . . . 3 . . . Kills | -11 -10 -10 -10 -9 -8 -7 -6 -6 -6 -6 -6 -6 -6 -6 -5 ------- Run | Yrd Mat Min Exi Min Mat Fac Fac Was Fac Gar Fac Low Low Zio Pro Combat Hostiles Destroyed 37 | . 5 . . 3 6 14 2 . . 5 . 1 . . 1 Melee 2 | . . . . . . . 1 . . . . . . . 1 Guns 12 | . . . . . . 10 . . . 2 . . . . . Cannons 9 | . 5 . . . 3 . . . . . . 1 . . . AOE 11 | . . . . 3 3 3 . . . 2 . . . . . Classes Destroyed 13 | 2 4 . . . 3 3 . . . 1 . . . . . Worker 7 | . 3 . . . 1 2 1 . . . . . . . . Builder 4 | . . . . . 2 2 . . . . . . . . . Tunneler 6 | 4 . . . 2 . . . . . . . . . . . Hauler 2 | . 1 . . . . . 1 . . . . . . . . Recycler 5 | 1 1 . . . 1 1 1 . . . . . . . . Mechanic 1 | . . . . . . 1 . . . . . . . . . Operator 4 | . . . . . 1 3 . . . . . . . . . Watcher 5 | . . . . . . 2 1 . . . 2 . . . . Swarmer 20 | . 3 . . 3 5 7 . . . . . 1 . . 1 Cutter 2 | . . . . . . . . . . 2 . . . . . Grunt 11 | . 2 . . . . 6 1 . . 2 . . . . . Sentry 2 | . . . . . 1 . . . . 1 . . . . . Programmer 2 | . . . . . . 1 1 . . . . . . . . Best Kill Streak 8 | 3 8 . . 3 6 8 2 . . 2 1 1 . . 1 Combat Bots Only 6 | . 4 . . 3 3 6 1 . . 2 . 1 . . 1 Max Kills in Single Turn 3 | 1 1 . . 2 3 2 1 . . 1 1 1 . . 1 Gunslinging . | . . . . . . . . . . . . . . . . Exploded 3 | . . . . 2 3 2 . . . 1 . . . . . Melee 1 | . . . . . . . 1 . . . . . . . 1 Uniques/NPCs Destroyed . | . . . . . . . . . . . . . . . . Combat | -11 -10 -10 -10 -9 -8 -7 -6 -6 -6 -6 -6 -6 -6 -6 -5 -------- Run | Yrd Mat Min Exi Min Mat Fac Fac Was Fac Gar Fac Low Low Zio Pro Hostile Shots Fired 479 | . 30 . . 5 38 101 47 . . 201 . 8 24 . 25 Missed 204 | . 10 . . 1 17 32 15 . . 100 . 5 16 . 8 Damage Taken 4367 | . 229 . . 32 361 1388 465 . . 1345 . 150 145 . 252 Core 1410 | . 58 . . 16 102 384 180 . . 518 . 55 14 . 83 Absorbed by Shields . | . . . . . . . . . . . . . . . . Regen/Repaired (Parts) 312 | . . . . . . 154 118 . . . . . . 40 . Core Remaining (%) 74 | 100 . . . 70 81 45 . . . . . . . . . Volleys Fired 271 | 21 53 1 . 14 49 79 15 . . 17 6 16 . . . Largest 2 | 2 2 1 . 1 2 2 1 . . 1 1 1 . . . Hottest 108 | 70 70 39 . 39 78 108 75 . . 36 75 53 . . . Shots Fired 319 | 42 60 1 . 14 60 88 15 . . 16 6 17 . . . Gun 170 | 42 17 . . . . 85 15 . . 11 . . . . . Cannon 134 | . 43 1 . 11 56 . . . . . 6 17 . . . Launcher 12 | . . . . 3 4 . . . . 5 . . . . . Special 3 | . . . . . . 3 . . . . . . . . . Kinetic 246 | 21 50 1 . 11 56 70 8 . . 11 1 17 . . . Thermal 53 | 21 10 . . . . 15 7 . . . . . . . . Explosive 12 | . . . . 3 4 . . . . 5 . . . . . Electromagnetic 5 | . . . . . . . . . . . 5 . . . . Robot Hit Streak 9 | 7 4 . . 3 9 8 4 . . 7 1 3 . . . Robot Miss Streak 5 | 2 4 . . 2 2 5 4 . . 2 2 3 . . . Penetration Max 2 | . . . . . . 1 . . . 2 . . . . . Secondary Targets . | . . . . . . . . . . . . . . . . Shots Hit Robots 234 | 29 41 . . 10 23 64 24 . . 26 8 7 1 . 1 Core Hits 96 | 7 13 . . 5 14 40 6 . . 8 2 1 . . . Critical Kills 3 | . . . . . . 1 . . . 2 . . . . . Critical Parts Destroyed 7 | . . . . . . . 3 . . 4 . . . . . Critical Strikes 16 | 1 2 . . 1 . 1 3 . . 7 . 1 . . . Burn 1 | 1 . . . . . . . . . . . . . . . Destroy 4 | . . . . . . 1 . . . 3 . . . . . Blast 4 | . 2 . . 1 . . . . . . . 1 . . . Smash 7 | . . . . . . . 3 . . 4 . . . . . Melee Attacks 121 | . 11 . . 4 . 4 55 2 . 31 7 . 1 . 6 Impact 87 | . . . . . . . 55 2 . 30 . . . . . Slashing 6 | . . . . . . . . . . . . . . . 6 Piercing . | . . . . . . . . . . . . . . . . Sneak Attacks 23 | . 7 . . 4 . 3 3 . . . 5 . 1 . . Combat Hostiles . | . . . . . . . . . . . . . . . . Follow-up Attacks . | . . . . . . . . . . . . . . . . Damage Inflicted 5853 | 335 571 . . 278 816 1771 929 . . 793 84 225 . . 51 Guns 1973 | 335 70 . . . . 1339 146 . . 83 . . . . . Cannons 1357 | . 501 . . 130 417 . . . . . 84 225 . . . Explosions 1171 | . . . . 148 399 432 . . . 192 . . . . . Melee 1352 | . . . . . . . 783 . . 518 . . . . 51 Ramming . | . . . . . . . . . . . . . . . . Kinetic 2619 | 99 534 . . 130 417 1015 82 . . 83 34 225 . . . Thermal 661 | 236 37 . . . . 324 64 . . . . . . . . Explosive 1099 | . . . . 148 399 360 . . . 192 . . . . . Electromagnetic 122 | . . . . . . 72 . . . . 50 . . . . Impact 1301 | . . . . . . . 783 . . 518 . . . . . Slashing 51 | . . . . . . . . . . . . . . . 51 Piercing . | . . . . . . . . . . . . . . . . Highest Corruption 26 | . 2 2 2 2 1 15 2 11 11 24 24 24 26 26 . Average Corruption 12 | . 2 2 2 2 1 13 1 9 11 15 24 24 24 26 . Corruption Purged . | . . . . . . . . . . . . . . . . Corruption Blocked . | . . . . . . . . . . . . . . . . Effects 119 | . 1 2 1 7 2 23 5 5 . 15 23 25 8 2 . Message Errors 32 | . 1 . . 3 1 5 1 . . 7 5 7 2 . . Matter Fused 20 | . . 1 1 . . 4 2 . . . 6 4 1 1 . Heat Flow Errors 10 | . . . . 1 . . . . . 2 4 3 . . . Energy Discharges 14 | . . . . 1 . 4 . 2 . 2 . 3 2 . . Parts Rejected 4 | . . . . . . 1 . 1 . . 1 1 . . . Parts Fused 2 | . . 1 . . . . 1 . . . . . . . . Data Loss (minor) 13 | . . . . 1 . 5 1 . . 1 2 . 2 1 . Data Loss (major) 6 | . . . . 1 . 1 . . . . 2 2 . . . Misfires 4 | . . . . . 1 2 . . . . . 1 . . . Alerts 1 | . . . . . . . . . . . . 1 . . . Misdirections 12 | . . . . . . 1 . 2 . 2 3 3 1 . . Weapon Failures 1 | . . . . . . . . . . 1 . . . . . Overload Shots . | . . . . . . . . . . . . . . . . Overflow Damage 660 | . . . . 13 18 217 215 . . 155 . 16 . . 26 Projectiles 31 | . . . . 13 2 . . . . . . 16 . . . Explosions 233 | . . . . . 16 217 . . . . . . . . . Melee 396 | . . . . . . . 215 . . 155 . . . . 26 Knockbacks 15 | . 8 . . 1 4 . 2 . . . . . . . . Impact 2 | . . . . . . . 2 . . . . . . . . Kinetic 13 | . 8 . . 1 4 . . . . . . . . . . Secondary . | . . . . . . . . . . . . . . . . Self-Inflicted Damage 501 | . . . . . 66 342 . . . 93 . . . . . Shots 8 | . . . . . 1 5 . . . 2 . . . . . Rammed . | . . . . . . . . . . . . . . . . Targets Rammed . | . . . . . . . . . . . . . . . . Kicked . | . . . . . . . . . . . . . . . . Crushed . | . . . . . . . . . . . . . . . . Highest Temperature 352 | 40 109 4 . 237 48 139 8 . . 241 264 352 . . . Average Temperature 44 | 18 25 3 . 61 14 32 3 . . 75 92 123 . . . Received Heat Transfer 912 | . 84 . . . 90 225 63 . . 432 . . 18 . . Siege Activations . | . . . . . . . . . . . . . . . . Robots Corrupted . | . . . . . . . . . . . . . . . . Combat Hostiles . | . . . . . . . . . . . . . . . . Parts Fried 8 | . . . . . . . 7 . . 1 . . . . . Impact Corruptions 14 | . . . . . . . 8 . . 6 . . . . . Robots Melted 1 | . . . . . . 1 . . . . . . . . . Combat Hostiles 1 | . . . . . . 1 . . . . . . . . . Parts Melted 2 | 1 . . . . . 1 . . . . . . . . . Heat Transferred 1688 | 777 111 . . . . 650 150 . . . . . . . . Parts Sabotaged . | . . . . . . . . . . . . . . . . Parts Stolen . | . . . . . . . . . . . . . . . . Parts Stripped . | . . . . . . . . . . . . . . . . Power Chain Reactions . | . . . . . . . . . . . . . . . . Alert | -11 -10 -10 -10 -9 -8 -7 -6 -6 -6 -6 -6 -6 -6 -6 -5 ------- Run | Yrd Mat Min Exi Min Mat Fac Fac Was Fac Gar Fac Low Low Zio Pro Peak Influence 481 | 25 341 85 . 94 479 481 391 124 84 352 271 . . . . Initial 217 | . 16 63 . . . 217 88 109 84 58 182 . . . . Average 209 | 10 153 79 . 19 182 284 254 110 84 219 222 . . . . Maximum Alert Level 2 | . 1 . . . 2 2 1 . . 1 1 . . . . Low Security (%) 42 | 100 80 100 . 100 51 17 20 100 100 53 23 . . . . Level 1 54 | . 19 . . . 36 74 79 . . 46 76 . . . . Level 2 3 | . . . . . 12 7 . . . . . . . . . Level 3 . | . . . . . . . . . . . . . . . . Level 4 . | . . . . . . . . . . . . . . . . Level 5 . | . . . . . . . . . . . . . . . . High Security . | . . . . . . . . . . . . . . . . Max Security . | . . . . . . . . . . . . . . . . Squads Dispatched 18 | . 2 . . . 4 6 3 . . . 3 . . . . Investigation 8 | . 1 . . . 2 3 . . . . 2 . . . . Extermination 3 | . . . . . . 1 2 . . . . . . . . Reinforcement 7 | . 1 . . . 2 2 1 . . . 1 . . . . Assault . | . . . . . . . . . . . . . . . . Garrison . | . . . . . . . . . . . . . . . . Intercept . | . . . . . . . . . . . . . . . . Searches Triggered . | . . . . . . . . . . . . . . . . Construction Impeded 1 | . . . . . 1 . . . . . . . . . . Haulers Reinforced 1 | . . . . . . . . . . . 1 . . . . Active Scanning Responses . | . . . . . . . . . . . . . . . . Cargo Convoy Interrupts . | . . . . . . . . . . . . . . . . Stealth | -11 -10 -10 -10 -9 -8 -7 -6 -6 -6 -6 -6 -6 -6 -6 -5 --------- Run | Yrd Mat Min Exi Min Mat Fac Fac Was Fac Gar Fac Low Low Zio Pro Distress Signals 10 | . 2 . . . 4 . 2 . . 1 1 . . . . Communications Jammed . | . . . . . . . . . . . . . . . . Distress Signals . | . . . . . . . . . . . . . . . . Times Spotted 155 | . 22 . . 3 26 26 26 6 . 12 6 15 5 . 8 Peak Tracking Total 11 | . 5 . . 3 11 5 6 6 . 5 2 5 5 . 4 Tactical Retreats 29 | . 3 . . . 5 3 8 . . 3 1 3 2 . 1 Traps | -11 -10 -10 -10 -9 -8 -7 -6 -6 -6 -6 -6 -6 -6 -6 -5 ------- Run | Yrd Mat Min Exi Min Mat Fac Fac Was Fac Gar Fac Low Low Zio Pro Traps Triggered 9 | . 2 . . . 2 . 1 . . 2 . 2 . . . Indirectly . | . . . . . . . . . . . . . . . . Trap Hack Attempts . | . . . . . . . . . . . . . . . . Triggered . | . . . . . . . . . . . . . . . . Disarmed . | . . . . . . . . . . . . . . . . Reprogrammed . | . . . . . . . . . . . . . . . . Reused . | . . . . . . . . . . . . . . . . Traps Extracted . | . . . . . . . . . . . . . . . . Installed . | . . . . . . . . . . . . . . . . Triggered . | . . . . . . . . . . . . . . . . Machines | -11 -10 -10 -10 -9 -8 -7 -6 -6 -6 -6 -6 -6 -6 -6 -5 ---------- Run | Yrd Mat Min Exi Min Mat Fac Fac Was Fac Gar Fac Low Low Zio Pro Machines Disabled 20 | . . 1 . . 1 13 2 . . 3 . . . . . Max in Single Turn 6 | . . 1 . . 1 6 1 . . 1 . . . . . Garrison Access 2 | . . . . . . . 1 . . . 1 . . . . Garrison Relay 3 | . . . . . . . . . . 3 . . . . . Machines Repaired . | . . . . . . . . . . . . . . . . Machines Dismantled . | . . . . . . . . . . . . . . . . Machines Sabotaged . | . . . . . . . . . . . . . . . . Overloaded Fab Kills . | . . . . . . . . . . . . . . . . Hacking | -11 -10 -10 -10 -9 -8 -7 -6 -6 -6 -6 -6 -6 -6 -6 -5 --------- Run | Yrd Mat Min Exi Min Mat Fac Fac Was Fac Gar Fac Low Low Zio Pro Machines Accessed 47 | . 7 . 1 . 5 13 9 . 2 . 8 1 1 . . Terminals 24 | . 6 . . . 3 7 5 . 1 . 2 . . . . Fabricators 5 | . . . . . . 2 . . . . 3 . . . . Repair Stations 6 | . . . . . . 4 1 . . . 1 . . . . Recycling Units 4 | . 1 . . . 1 . 1 . . . 1 . . . . Scanalyzers 2 | . . . . . 1 . 1 . . . . . . . . Garrison Access 3 | . . . . . . . 1 . 1 . 1 . . . . Total Hacks 108 | . 13 . 1 . 11 37 21 . 7 . 16 1 1 . . Successful 61 | . 7 . 1 . 5 22 16 . 3 . 5 1 1 . . Failed 47 | . 6 . . . 6 15 5 . 4 . 11 . . . . Catastrophic 8 | . 1 . . . 2 3 . . 1 . 1 . . . . Database Lockouts . | . . . . . . . . . . . . . . . . Manual 31 | . 5 . 1 . 5 10 8 . 1 . 1 . . . . Terminals 57 | . 11 . . . 7 21 13 . 2 . 3 . . . . Fabricators 9 | . . . . . . 3 . . . . 6 . . . . Repair Stations 20 | . . . . . . 13 4 . . . 3 . . . . Recycling Units 8 | . 2 . . . 1 . 2 . . . 3 . . . . Scanalyzers 4 | . . . . . 3 . 1 . . . . . . . . Garrison Access 7 | . . . . . . . 1 . 5 . 1 . . . . Terminal Hacks 32 | . 5 . 1 . 3 9 10 . 1 . 1 1 1 . . Record 2 | . 1 . . . . . . . . . . 1 . . . Part Schematic 4 | . 1 . . . 1 1 1 . . . . . . . . Open Door 1 | . . . . . . . . . . . . . 1 . . Open DSF 7 | . . . . . . 3 3 . . . 1 . . . . Level Access Points 1 | . . . . . . . 1 . . . . . . . . Branch Access Points 3 | . 1 . . . 1 . 1 . . . . . . . . Emergency Access Points 1 | . . . . . . . 1 . . . . . . . . Fabricator Index 1 | . . . . . . . 1 . . . . . . . . Alert Level 4 | . 1 . . . 1 1 . . 1 . . . . . . Unreport Threat 2 | . . . . . . 2 . . . . . . . . . Locate Traps 3 | . 1 . . . . 1 1 . . . . . . . . Registered Prototypes 1 | . . . . . . . 1 . . . . . . . . Zone Layout 1 | . . . . . . 1 . . . . . . . . . Derelict Proto ID Bank 1 | . . . 1 . . . . . . . . . . . . Fabricator Hacks 4 | . . . . . . 3 . . . . 1 . . . . Network Status 1 | . . . . . . . . . . . 1 . . . . Load Schematic 1 | . . . . . . 1 . . . . . . . . . Build 2 | . . . . . . 2 . . . . . . . . . Repair Station Hacks 13 | . . . . . . 10 2 . . . 1 . . . . Scan Component 9 | . . . . . . 7 1 . . . 1 . . . . Repair 4 | . . . . . . 3 1 . . . . . . . . Recycling Unit Hacks 5 | . 1 . . . 1 . 2 . . . 1 . . . . Report Inventory 2 | . . . . . 1 . 1 . . . . . . . . Retrieve Components 3 | . 1 . . . . . 1 . . . 1 . . . . Scanalyzer 2 | . . . . . 1 . 1 . . . . . . . . Insert Component 2 | . . . . . 1 . 1 . . . . . . . . Garrison Access Hacks 4 | . . . . . . . 1 . 2 . 1 . . . . Unlock Access 1 | . . . . . . . . . 1 . . . . . . Seal Access 2 | . . . . . . . 1 . . . 1 . . . . Coupler Status 1 | . . . . . . . . . 1 . . . . . . Unauthorized Hacks 1 | . 1 . . . . . . . . . . . . . . Terminals 1 | . 1 . . . . . . . . . . . . . . Sabotage 1 | . 1 . . . . . . . . . . . . . . Fabricators . | . . . . . . . . . . . . . . . . Repair Stations . | . . . . . . . . . . . . . . . . Recycling Units . | . . . . . . . . . . . . . . . . Scanalyzers . | . . . . . . . . . . . . . . . . Garrison Access . | . . . . . . . . . . . . . . . . Data Cores Recovered 1 | . . . . . . 1 . . . . . . . . . Used . | . . . . . . . . . . . . . . . . Hacking Detections 27 | . 6 . . . 4 7 2 . 2 . 6 . . . . Full Trace Events 7 | . 1 . . . 1 3 . . . . 2 . . . . Feedback Events 1 | . . . . . 1 . . . . . . . . . . Corruption 1 | . . . . . 1 . . . . . . . . . . Feedback Blocked . | . . . . . . . . . . . . . . . . Robot Schematics Acquired . | . . . . . . . . . . . . . . . . Robots Built . | . . . . . . . . . . . . . . . . Authchips . | . . . . . . . . . . . . . . . . Time . | . . . . . . . . . . . . . . . . Total Robot Build Rating . | . . . . . . . . . . . . . . . . Part Schematics Acquired 3 | . 1 . . . 1 1 . . . . . . . . . Parts Built 2 | . . . . . . 2 . . . . . . . . . Authchips . | . . . . . . . . . . . . . . . . Time 101 | . . . . . . 101 . . . . . . . . . Total Part Build Rating 7 | . . . . . . 7 . . . . . . . . . Parts Repaired 4 | . . . . . . 3 1 . . . . . . . . Time 109 | . . . . . . 90 19 . . . . . . . . Parts Recycled . | . . . . . . . . . . . . . . . . Recycled Matter . | . . . . . . . . . . . . . . . . Retrieved Matter . | . . . . . . . . . . . . . . . . Retrieved Components 5 | . 2 . . . . . 3 . . . . . . . . Parts Scanalyzed 1 | . . . . . 1 . . . . . . . . . . Part Schematics Acquired . | . . . . . . . . . . . . . . . . Parts Damaged . | . . . . . . . . . . . . . . . . Bothacking | -11 -10 -10 -10 -9 -8 -7 -6 -6 -6 -6 -6 -6 -6 -6 -5 ------------ Run | Yrd Mat Min Exi Min Mat Fac Fac Was Fac Gar Fac Low Low Zio Pro Used RIF Installer . | . . . . . . . . . . . . . . . . Robots Hacked 17 | . 6 . . 3 . 4 . . . 1 3 . . . . Non-combat 15 | . 5 . . 3 . 4 . . . . 3 . . . . Combat 2 | . 1 . . . . . . . . 1 . . . . . Robot Hacks Applied 21 | . 7 . . 3 . 5 . . . 1 5 . . . . parse_system 4 | . 3 . . . . . . . . 1 . . . . . no_distress 11 | . 4 . . 3 . 2 . . . . 2 . . . . find_chute 1 | . . . . . . 1 . . . . . . . . . find_fabricator 1 | . . . . . . . . . . . 1 . . . . find_dsf 1 | . . . . . . . . . . . 1 . . . . check_alert 3 | . . . . . . 2 . . . . 1 . . . . Relay Couplers Released 13 | . . . . . . . . . . 13 . . . . . Machine Destruction 13 | . . . . . . . . . . 13 . . . . . Fabnet Peak Effective % . | . . . . . . . . . . . . . . . . Robots Rewired . | . . . . . . . . . . . . . . . . Allies Hacked . | . . . . . . . . . . . . . . . . Hacks Repelled . | . . . . . . . . . . . . . . . . Allies | -11 -10 -10 -10 -9 -8 -7 -6 -6 -6 -6 -6 -6 -6 -6 -5 -------- Run | Yrd Mat Min Exi Min Mat Fac Fac Was Fac Gar Fac Low Low Zio Pro Total Allies 1 | . . . . . . . . 1 . . . . . . . Largest Group 1 | . . . . . . . . 1 . . . . . . . Highest-Rated Group 31 | . . . . . . . . 31 . . . . . . . Highest-Rated Ally 31 | . . . . . . . . 31 . . . . . . . Total Orders . | . . . . . . . . . . . . . . . . Ally Attacks 4 | . . . . . . . . 4 . . . . . . . Total Damage 84 | . . . . . . . . 84 . . . . . . . Kills . | . . . . . . . . . . . . . . . . Allies Corrupted . | . . . . . . . . . . . . . . . . Allies Melted . | . . . . . . . . . . . . . . . . Intel | -11 -10 -10 -10 -9 -8 -7 -6 -6 -6 -6 -6 -6 -6 -6 -5 ------- Run | Yrd Mat Min Exi Min Mat Fac Fac Was Fac Gar Fac Low Low Zio Pro Robot Analysis Total . | . . . . . . . . . . . . . . . . Derelict Logs Recovered 9 | . . 2 . 2 . . . . . . . 2 2 1 . Drone Launches . | . . . . . . . . . . . . . . . . Drone Recoveries . | . . . . . . . . . . . . . . . . Exploration | -11 -10 -10 -10 -9 -8 -7 -6 -6 -6 -6 -6 -6 -6 -6 -5 ------------- Run | Yrd Mat Min Exi Min Mat Fac Fac Was Fac Gar Fac Low Low Zio Pro Turns Passed 6494 | 111 525 186 170 415 329 1564 1128 87 24 342 468 530 137 399 79 Spaces Moved 11772 | 89 680 488 453 684 468 1865 1939 218 51 405 1226 1300 421 1263 222 Core 308 | 89 171 . . . . 31 . . . 17 . . . . . Treads . | . . . . . . . . . . . . . . . . Legs . | . . . . . . . . . . . . . . . . Wheels . | . . . . . . . . . . . . . . . . Hover 498 | . 286 . . . . 1 7 . . 204 . . . . . Flight 10966 | . 223 488 453 684 468 1833 1932 218 51 184 1226 1300 421 1263 222 Fastest Speed 23 | 50 37 37 37 37 31 26 35 34 30 23 23 24 24 29 29 Average Speed 33 | 50 51 37 37 38 35 32 35 34 32 42 25 24 27 29 29 Slowest Speed 150 | 50 120 37 37 120 37 117 60 35 34 150 27 104 109 109 112 Overloaded Moves . | . . . . . . . . . . . . . . . . Propulsion Burnouts . | . . . . . . . . . . . . . . . . Robots Hopped 7 | . . . . . . 4 . . . 2 . . 1 . . Cave-ins Triggered . | . . . . . . . . . . . . . . . . Exploration Rate (%) 53 | 5 75 60 79 98 43 32 33 97 1 36 27 95 59 89 29 Regions Visited 15 Branch Regions 7 Pre-discovered Areas 2 | . . . . 1 . . . . . . . 1 . . . Known Exits Taken 5 | . 1 . . . 1 . . . 1 . 1 . 1 . . Unknown Exits Taken 7 | 1 . 1 1 1 . 1 . . . . . 1 . 1 . Scrap Searched 18 | . . 1 . 2 . . . . . . . 3 8 2 2 Spaces Dug 48 | . 1 . . . 8 . 30 2 . 7 . . . . . Terrain Destroyed 230 | . 4 7 . 26 62 26 30 2 . 65 . 8 . . . Melee 39 | . . . . . . . 30 2 . 7 . . . . . Projectile 21 | . 4 . . . 9 . . . . . . 8 . . . AOE 169 | . . 7 . 26 53 25 . . . 58 . . . . . Terrain Rammed . | . . . . . . . . . . . . . . . . Walls Destroyed . | . . . . . . . . . . . . . . . . Machines Disabled . | . . . . . . . . . . . . . . . . Actions | -11 -10 -10 -10 -9 -8 -7 -6 -6 -6 -6 -6 -6 -6 -6 -5 --------- Run | Yrd Mat Min Exi Min Mat Fac Fac Was Fac Gar Fac Low Low Zio Pro Total 13836 | 117 789 492 455 818 571 2719 2275 226 57 499 1367 1488 443 1292 228 Wait 1444 | . 12 . 1 111 39 712 250 1 2 23 105 155 12 21 . Move 11744 | 88 679 487 452 683 467 1856 1939 217 50 400 1225 1299 418 1262 222 Hop 7 | . . . . . . 4 . . . 2 . . 1 . . Pick Up 61 | 5 12 2 1 1 3 13 2 1 2 5 4 6 2 2 . Fast Attach 59 | . 3 . . 1 4 20 7 2 1 7 9 1 2 2 . Attach 38 | 2 9 . . . 1 10 1 2 . 8 . 4 1 . . Detach 5 | . 1 . . . . 1 1 . . . . 1 1 . . Swap 32 | . 5 . . 3 4 8 . . 1 . 6 3 1 1 . Drop 48 | 1 4 2 1 1 4 12 5 1 1 . 5 3 4 4 . Fire 271 | 21 53 1 . 14 49 79 15 . . 17 6 16 . . . Melee 121 | . 11 . . 4 . 4 55 2 . 31 7 . 1 . 6 Ram . | . . . . . . . . . . . . . . . . Kick . | . . . . . . . . . . . . . . . . Crush . | . . . . . . . . . . . . . . . . Escape Stasis 6 | . . . . . . . . . . 6 . . . . . Rewire . | . . . . . . . . . . . . . . . . Trap . | . . . . . . . . . . . . . . . . Miscellaneous . | . . . . . . . . . . . . . . . . Route ------- -11/Scrapyard -10/Materials (discovered 2 exits: [*Mat] / *Min) -10/Mines (discovered 3 exits: [*Mat x2] / *Exi) -10/Exiles (discovered 2 exits: [*Min x2]) -9/Mines (discovered 2 exits: *Mat x2) -8/Materials (discovered 2 exits: *Fac x2) -7/Factory (discovered 4 exits: *Fac x2 / [*Sto] / [Low]) -6/Factory (discovered 6 exits: Fac x4 / *Low x2) -6/Waste -6/Factory -6/Garrison -6/Factory (discovered 3 exits: *Fac / *Low x2) -6/Lower Caves -6/Lower Caves -6/Zion -5/Proximity Caves History --------- Turn | Location | Event 3 | -11/Scrapyard | Discovered new exit (range 15) 112 | -11/Scrapyard | Entered Materials 141 | -10/Materials | Identified exit to Mines 317 | -10/Materials | Build established: Mutant 543 | -10/Materials | Discovered new exit (range 16) 637 | -10/Materials | Entered Mines 696 | -10/Mines | Learned 8 Materials zone layouts 697 | -10/Mines | Discovered new exit (range 8) 700 | -10/Mines | Learned 2 Materials zone layouts 747 | -10/Mines | Discovered new exit (range 15) 789 | -10/Mines | Found a damaged Exp. Sensor Array with a note attached 791 | -10/Mines | Found Prototype Device 821 | -10/Mines | Deemed a non-threat by the Exiles lab entrance 821 | -10/Mines | Discovered new exit (range 5) 823 | -10/Mines | Entered Exiles 830 | -10/Exiles | Discovered new exit (range 15) 834 | -10/Exiles | Met 8R-AWN 840 | -10/Exiles | Met EX-HEX 852 | -10/Exiles | Met EX-BIN 857 | -10/Exiles | Aligned with FarCom system 857 | -10/Exiles | Given EX-Vault access code 866 | -10/Exiles | Opened EX-Vault 869 | -10/Exiles | Found Latent Energy Streamer 879 | -10/Exiles | Warned to stay clear of 0b10 Research branches 888 | -10/Exiles | Met EX-DEC 911 | -10/Exiles | Visited The Gauntlet 990 | -10/Exiles | Discovered new exit (range 12) 993 | -10/Exiles | Left Exiles lab with Latent Energy Streamer 993 | -10/Exiles | Entered Mines 1021 | -9/Mines | Learned Materials machine intel 1035 | -9/Mines | Met a Derelict bent on vengeance 1153 | -9/Mines | Received a Rocket Launcher from a helpful Derelict 1159 | -9/Mines | Discovered new exit (range 10) 1248 | -9/Mines | Learned location of Storage (-7) 1297 | -9/Mines | Discovered new exit (range 14) 1408 | -9/Mines | Entered Materials 1408 | -8/Materials | Evolved 4 slots: Propulsion x2, Utility x2 1409 | -8/Materials | Identified exit to Factory 1410 | -8/Materials | Loaded intel: 51 machine locations 1472 | -8/Materials | Identified Exp. Sensor Array 1485 | -8/Materials | Discovered exit to Factory (range 12) 1613 | -8/Materials | Build established: Scavenger-Mutant 1737 | -8/Materials | Entered Factory 1737 | -7/Factory | Evolved 2 slots: Utility x2 1754 | -7/Factory | Discovered new exit (range 16) 1922 | -7/Factory | Fabricated Hacking Suite (x1) 2110 | -7/Factory | Lost 3 parts (2n1u) 2175 | -7/Factory | Repaired Gauss Rifle 2188 | -7/Factory | Discovered new exit (range 16) 2193 | -7/Factory | Discovered new exit (range 15) 2389 | -7/Factory | Build established: Hacker-Sprinter 2755 | -7/Factory | System corruption reached 10% 2760 | -7/Factory | Lost 7 parts (1p4n2w) 2792 | -7/Factory | Fabricated Adv. ECM Suite (x1) 2872 | -7/Factory | Repaired VTOL Module 2884 | -7/Factory | Discovered new exit (range 13) 2927 | -7/Factory | Repaired Broken Gatling Laser 2972 | -7/Factory | Core integrity fell below 50% 3002 | -7/Factory | Lost 6 parts (1p4n1w) 3272 | -7/Factory | Build established: Hacker-Mutant 3301 | -7/Factory | Entered another Factory area 3301 | -6/Factory | Evolved 2 slots: Propulsion x1, Utility x1 3313 | -6/Factory | Identified exit to DSF 3432 | -6/Factory | Discovered new exit (range 6) 3544 | -6/Factory | Identified exit to Lower Caves 3544 | -6/Factory | Identified exit to Factory 3646 | -6/Factory | Build established: Wizard-Mutant 4254 | -6/Factory | Repaired Hvy. Mace 4429 | -6/Factory | Sucked down chute 4429 | -6/Factory | Entered Waste 4430 | -6/Waste | Met a frightened Derelict 4433 | -6/Waste | Spotted C-40 Crusher 4444 | -6/Waste | EMP discharged 4444 | -6/Waste | System corruption reached 10% 4453 | -6/Waste | Spotted C-40 Crusher 4467 | -6/Waste | Spotted C-40 Crusher 4490 | -6/Waste | Spotted C-40 Crusher 4490 | -6/Waste | Spotted C-40 Crusher 4509 | -6/Waste | Spotted C-40 Crusher 4510 | -6/Waste | Discovered new exit (range 14) 4516 | -6/Waste | Entered Factory 4538 | -6/Factory | Identified exit to Garrison 4540 | -6/Factory | Entered Garrison 4546 | -6/Garrison | Warlord forces raided the area 4554 | -6/Garrison | Heavy support dispatched to Factory 4578 | -6/Garrison | Triggered checkpoint 4628 | -6/Garrison | Triggered checkpoint 4668 | -6/Garrison | Triggered checkpoint 4721 | -6/Garrison | Triggered checkpoint 4747 | -6/Garrison | Lost 4 parts (2n1u1w) 4768 | -6/Garrison | Garrison Relay disabled 4772 | -6/Garrison | Garrison Relay disabled 4778 | -6/Garrison | Triggered checkpoint 4797 | -6/Garrison | Core integrity fell below 50% 4829 | -6/Garrison | Lost 7 parts (1p2n4u) 4850 | -6/Garrison | Core integrity fell below 20% 4879 | -6/Garrison | Discovered new exit (range 14) 4882 | -6/Garrison | Entered Factory 4896 | -6/Factory | Lost 3 parts (2n1w) 5039 | -6/Factory | Spotted B-75 Beast 5095 | -6/Factory | Discovered exit to Lower Caves (range 3) 5163 | -6/Factory | Discovered exit to Factory (range 7) 5328 | -6/Factory | Discovered exit to Lower Caves (range 17) 5350 | -6/Factory | Entered Lower Caves 5368 | -6/Lower Caves | Met a Warlord Commander 5369 | -6/Lower Caves | Learned location of Warlord (-4) 5370 | -6/Lower Caves | Warlord Commander delivered Encrypted Comm Array 5371 | -6/Lower Caves | Build established: Sprinter 5392 | -6/Lower Caves | Encountered a Warlord checkpoint 5463 | -6/Lower Caves | Found Encrypted Comm Array 5517 | -6/Lower Caves | Attracted the attention of an 0b10 checkpoint 5576 | -6/Lower Caves | Learned Factory stockpile data 5804 | -6/Lower Caves | Build established: Scavenger-Sprinter 5847 | -6/Lower Caves | Discovered new exit (range 19) 5851 | -6/Lower Caves | Learned Factory terminal intel 5880 | -6/Lower Caves | Entered another Lower Caves area 5896 | -6/Lower Caves | Identified exit to Zion 5905 | -6/Lower Caves | Learned Factory stockpile data 5920 | -6/Lower Caves | Spotted B-75 Beast 6017 | -6/Lower Caves | Entered Zion 6040 | -6/Zion | System corruption cleaned by Quarantine Array 6186 | -6/Zion | Visited the Megawrench Repair Shop 6186 | -6/Zion | Megawrench repaired 5 parts 6207 | -6/Zion | Given A8's code to call for help 6220 | -6/Zion | Rebuked by Imprinter 6267 | -6/Zion | Found CR-A16's Pointy Stick 6307 | -6/Zion | Build established: Hacker-Sprinter 6396 | -6/Zion | Discovered new exit (range 19) 6416 | -6/Zion | Entered Proximity Caves 6420 | -5/Proximity Caves | Spotter reported a threat 6421 | -5/Proximity Caves | Spotted B-75 Beast 6495 | -5/Proximity Caves | Destroyed by S-27 Virus with Autogun Last Messages --------------- 06398_ Found Thermic Laser. 06398_ Found 13 Matter. LOCATION=UNKNOWN GOAL=ESCAPE 06418_ N-01 Spotter is scanning... 06420_ ALERT: Unidentified potential threat approaching Complex 0b10. 06468_ Searching scrap... 06468_ Found Arm. Wheel. 06468_ Found 0b10 Decoder Chip [Generic]. 06468_ Found Propulsion Shielding. 06468_ Found 22 Matter. 06474_ Searching scrap... 06474_ Found Armor Integrity Analyzer. 06474_ Found 31 Matter. 06480_ Destroyed VTOL Module. 06480_ S-27 Virus destroyed. 06485_ VTOL Module destroyed. 06486_ Hacking Suite destroyed. 06492_ VTOL Module destroyed. Map ----- +----------------------------------------------------+ | ?????????????????????????????????????????????????? | | ?????????????????????????????????????????????????? | | ?????????????????????????????????????????????????? | | ????????????????????????#????????????????????????? | | ?????????????#???????????????????????????????????? | | ?????????????#???????????????????????????????????? | | ?????????????????????????????????????????????????? | | ?????????????????????????????????????????????????? | | ??????????#?????#????????????????????????????????? | | ????#???????????????????? ???????????????????????? | | ?????????????????????????????????????? ??????????? | | ?????????????????#######????????? ?? ????????????? | | #?????????######## ##????? ?????" ???????????? | | #####?????# ##? ???????""""??????????? | | ??????" #???????" ""#??????????? | | ?????????# #??? ??"" #???????????? | | ??????????## #?????"""" "#???????????? | | ??????????## * ##???? " ??? ?????????? | | ????????### %######????? ??????????????? | | ???????## % #???? ???????????????? | | ???????# ##! #???# #????????????????? | | ?# #??# #### #??# #?????????????????? | | ?# ##???# #??# #?? #??????????????????? | | ?####### ?????## #??# #? #?#?#??????????????? | | ##????# ??????# #??# ## #??????#???????????? | | ##????? ###???# #?## #@ #??????????????????? | | ##?#?? #???# ### s #????#?????????????? | | #???? ##### ## s ##?????????????????? | | #????# ##! s ##????????????????? | | ####### ## %! #????????????????? | | ## ##= ###### ## #???????????????? | | # ?# ## #??#?# ##? #??????????????? | | # ## ## ## #????####?? #?????????????? | | ## ## ## #?????????? ####?????????????? | | ## ##??????????? ##????????????????? | | ## ##?#####??????# #?????????????????? | | #### #?## #??????? #?????????????????? | | #??# #?# ##??????? ?????????????????? | | #### ## #?# #???????? ##????????????????? | | ## ### ### ##### #?????????????????? | | #### #??# ## ##?????????????????? | | ##??# #??## #### #??????????????????? | | ###???# #?## ##?????? #??????????????????? | | ##??### ### ^ ###??????????#??????????????????? | | ???## ^ ##?????? ??????? ????????????????? | | #### ##???????????? ???????????????????? | | ###?????????????????????????????????? | | ###????????? ?????????????????????????? | | ####### ##?????????????????????????????????????? | | ??????#####??????????????????????????????????????? | +----------------------------------------------------+ Best States ------------- Heat Dissipation 56 Energy Generation 25 Energy Capacity 290 Matter Stores 300 Matter Capacity 300 Sight Range 22 Terrain Scan Range 20 Terrain Scan Density 10 ECM Strength 1 Armor Coverage 150 Phase Shifting 5 Evasion (%) 70 Targeting Accuracy 8 Target Analysis 9 Offensive Hacking 50 Defensive Hacking 20 Authchip Count 1 Item Schematics ----------------- Flight Unit | -10/Materials | Hacked Hacking Suite | -8/Materials | Hacked Cesium-ion Thruster | -7/Factory | Hacked Robot Schematics ------------------ None Fabricated ------------ Hacking Suite | x1 | -7/Factory Adv. ECM Suite | x1 | -7/Factory | Preloaded Alien Tech Used ----------------- None Achievements -------------- Brute Force Can't Catch Me Challenges ------------ None Game ------ Seed AblativeLaserCharge Manual? 0 Play Time 02:28:30 Cumulative 17.5 hours Start 2024.04.11 @ 22:29:47 End 2024.04.12 @ 14:33:19 Sessions 3 Manual Loads 0 Difficulty Rogue Special Mode None Game No. 15 Rogue 15 Adventurer 0 Explorer 0 Win Type - Total 0 Types 0/0/0/0/0/0/0/0/0 Lore% 16 Gallery% 21 Achievement% 18 Wizard Run 0 Options --------- Layout 1 ASCII 0 Keyboard 0 Movement Numpad Keybinds 0 Fullscreen 1 Font 24/Terminus Map View 50x35 Zoom Use 0% Tactical HUD 1 Map Filters NONE Filters NONE Steam 0 RUN: ca17230e-63e1-4a77-98d7-68c7c1855a1d